Workbook

Sheet Cuotafijacomparable
S5: NOMINAL | T5: =+CONCATENATE(U12,CONCATENATE(LEFT(V16,1),LEFT(W16,1),LEFT(X16,1),LEFT(Y16,1))) -> 31,43% EACV | AS5: NOMINAL | AT5: =+CONCATENATE(AU12,CONCATENATE(LEFT(AV16,1),LEFT(AW16,1),LEFT(AX16,1),LEFT(AY16,1))) -> 15,00% EAMV
S6: PERIÓDICA | T6: =+CONCATENATE(U12,CONCATENATE(LEFT(W16,1),,LEFT(Y16,1))) -> 31,43% AV | AS6: PERIÓDICA | AT6: =+CONCATENATE(AU12,CONCATENATE(LEFT(AW16,1),,LEFT(AY16,1))) -> 15,00% AV
S7: EFECTIVA | T7: =+CONCATENATE(U12,CONCATENATE(LEFT(V16,1),LEFT(W16,1))) -> 31,43% EA | AS7: EFECTIVA | AT7: =+CONCATENATE(AU12,CONCATENATE(LEFT(AV16,1),LEFT(AW16,1))) -> 15,00% EA
B9: Primera opción 1° | C9: INGRESE AQUÍ LOS DATOS INICIALES E | D9: CAPITAL | E9: VALOR DEL CRÉDITO O PRÉSTAMO | G9: 14102000 | J9: Segunda opción 2° | K9: INGRESE AQUÍ LOS DATOS INICIALES E | L9: CAPITAL | M9: VALOR DEL CRÉDITO O PRÉSTAMO | O9: 14102000
D10: TASA DE INTERÉS | E10: VALOR DE LA TASA DE INTERES INFORMADA | G10: 0.3143 | H10: =TEXT(G10,"#0,00% ") -> 31,43% | L10: TASA DE INTERÉS | M10: VALOR DE LA TASA DE INTERES INFORMADA | O10: 0.15 | P10: =TEXT(O10,"#0,00% ") -> 15,00%
E11: TIPO DE TASA INFORMADA | G11: EFECTIVA | M11: TIPO DE TASA INFORMADA | O11: EFECTIVA | S11: PRIMERA OPCIÓN | AS11: SEGUNDA OPCIÓN
E12: TIPO DE PERIODO PACTADO DE LA TASA | G12: ANUAL | M12: TIPO DE PERIODO DE LA TASA | O12: ANUAL | U12: =TEXT(U16,"#0,00% ") -> 31,43% | V12: Ó | W12: ANUAL | AU12: =TEXT(AU16,"#0,00% ") -> 15,00% | AV12: Ó | AW12: ANUAL
E13: TIPO DE PERIODO DE PAGO DE INTERES | G13: CUATRIMESTRE | M13: TIPO DE PERIODO DE PAGO DE INTERES | O13: MES
E14: FORMA DE PAGOS DE LOS INTERESES | G14: VENCIDO | M14: FORMA DE PAGOS DE LOS INTERESES | O14: VENCIDO
D15: PLAZO | E15: PERIODICIDAD EN QUE DEBERÁ PAGAR LA CUOTA | G15: MENSUAL | L15: PLAZO | M15: PERIODICIDAD EN QUE DEBERÁ PAGAR LA CUOTA | O15: MENSUAL
E16: NUMERO DE PERIODOS TOTALES DEL CREDITO | G16: 24 | M16: NUMERO DE PERIODOS TOTALES DEL CREDITO | O16: 24 | U16: =+G10 -> 0.3143 | V16: =+G11 -> EFECTIVA | W16: =+G12 -> ANUAL | X16: =+G13 -> CUATRIMESTRE | Y16: =+G14 -> VENCIDO | AU16: =+O10 -> 0.15 | AV16: =+O11 -> EFECTIVA | AW16: =+O12 -> ANUAL | AX16: =+O13 -> MES | AY16: =+O14 -> VENCIDO
D17: OTROS CARGOS ASOCIADOS AL CREDITO | F17: OTROS CARGOS (%) | G17: 0 | L17: OTROS CARGOS ASOCIADOS AL CREDITO | N17: OTROS CARGOS (%) | O17: 0 | AG17: SI NOMINAL O EFECTIVA | AI17: =+IF(V16="NOMINAL",1,0) -> 0 | BG17: SI NOMINAL O EFECTIVA | BI17: =+IF(AV16="NOMINAL",1,0) -> 0
F18: OTROS CARGOS ($) | G18: 0 | N18: OTROS CARGOS ($) | O18: 0 | U18: PORCENTAJE | V18: TIPO DE TASA | W18: TIPO DE PERIODO PACTADO | X18: TIPO DE PERIODO DE PAGO DE INTERES | Y18: FORMA DE PAGOS DE INTERESES | AG18: Efectiva anual | AI18: 0.1268 | AU18: PORCENTAJE | AV18: TIPO DE TASA | AW18: TIPO DE PERIODO PACTADO | AX18: TIPO DE PERIODO DE PAGO DE INTERES | AY18: FORMA DE PAGOS DE INTERESES | BG18: Efectiva anual | BI18: 0.1268
C19: INFORMACIÓN RESUMEN DEL CRÉDITO 1 | D19: EL VALOR Y TIPO DE TASA QUE LE FUE INFORMADA FUE | G19: =+IF(G11="NOMINAL",T5,IF(G11="PERIÓDICA",T6,IF(G11="EFECTIVA",T7,))) -> 31,43% EA | H19: =TEXT(G19,"#0,00% ") -> 31,43% EA | K19: INFORMACIÓN RESUMEN DEL CRÉDITO 2 | L19: EL VALOR Y TIPO DE TASA QUE LE FUE INFORMADA FUE | O19: =+IF(O11="NOMINAL",AT5,IF(O11="PERIÓDICA",AT6,IF(O11="EFECTIVA",AT7,))) -> 15,00% EA | P19: =TEXT(O19,"#0,00% ") -> 15,00% EA
D20: 1) TASA EQUIVALENTE DE INTERÉS EFECTIVA ANUAL | G20: =+CONCATENATE(H20,"EA") -> 31,43% EA | H20: =TEXT(AD40,"#0,00% ") -> 31,43% | L20: 1) TASA EQUIVALENTE DE INTERÉS EFECTIVA ANUAL | O20: =+CONCATENATE(P20,"EA") -> 15,00% EA | P20: =TEXT(BD40,"#0,00% ") -> 15,00%
D21: 2) TASA EQUIVALENTE NOMINAL ANUAL MES VENCIDO | G21: =+CONCATENATE(H21,"NAMV") -> 27,64% NAMV | H21: =TEXT(V37,"#0,00% ") -> 27,64% | L21: 2) TASA EQUIVALENTE NOMINAL ANUAL MES VENCIDO | O21: =+CONCATENATE(P21,"NAMV") -> 14,06% NAMV | P21: =TEXT(AV37,"#0,00% ") -> 14,06%
D22: 3) TASA EQUIVALENTE PERIÓDICA MES VENCIDO | G22: =+CONCATENATE(H22,"MV") -> 2,30% MV | H22: =TEXT(Z37,"#0,00% ") -> 2,30% | L22: 3) TASA EQUIVALENTE PERIÓDICA MES VENCIDO | O22: =+CONCATENATE(P22,"MV") -> 1,17% MV | P22: =TEXT(AZ37,"#0,00% ") -> 1,17%
D23: N° DE CUOTAS MAXIMAS QUE PAGARÁ AL AÑO | G23: =IF(EXACT("DIARIO",G15),365,IF("SEMANAL"=G15,52,IF("QUINCENAL"=G15,24,IF("MENSUAL"=G15,12,IF("BIMESTRAL"=G15,6,IF("TRIMESTRAL"=G15,4,IF("SEMESTRAL"=G15,2,1))))))) -> 12 | L23: N° DE CUOTAS MAXIMAS QUE PAGARÁ AL AÑO | O23: =IF(EXACT("DIARIO",O15),365,IF("SEMANAL"=O15,52,IF("QUINCENAL"=O15,24,IF("MENSUAL"=O15,12,IF("BIMESTRAL"=O15,6,IF("TRIMESTRAL"=O15,4,IF("SEMESTRAL"=O15,2,1))))))) -> 12 | AG23: Verificación de Periodo de pago menor frente a pactado | AL23: =IF(V16="NOMINAL",IF(VLOOKUP(W16,$AK$43:$AL$51,2,0)>VLOOKUP(X16,$AK$55:$AL$63,2,0),0,1),1) -> 1 | BG23: Verificación de Periodo de pago menor frente a pactado | BL23: =IF(AV16="NOMINAL",IF(VLOOKUP(AW16,$BK$43:$BL$51,2,0)>VLOOKUP(AX16,$BK$55:$BL$63,2,0),0,1),1) -> 1
D24: CUOTA FIJA TOTAL A PAGAR CADA CORTE (INCLUYE COSTO ADICIONALES) | G24: =+D30+IF(G17>0%,G17*D30,0)+IF(G18>1,G18,0) -> 771481.911 | H24: =IF($G$23=365,"Diaria",IF($G$23=52,"Semanal",IF($G$23=24,"Quincenal",IF($G$23=12,"Mensual",IF($G$23=6,"Bimestral",IF($G$23=4,"Trimestral",IF($G$23=2,"Semestral","Anual"))))))) -> Mensual | L24: CUOTA FIJA TOTAL A PAGAR CADA CORTE (INCLUYE COSTO ADICIONALES) | O24: =+L30+IF(O17>0%,O17*L30,0)+IF(O18>1,O18,0) -> 677463.4744
D25: TOTAL DE INTERESES A PAGAR DURANTE EL TIEMPO | G25: =SUM($E$30:$E$394) -> 4413565.864 | H25: =-PMT(#REF!,G16,$G$9)+IF(G17>0%,G17*D30,0)+IF(G18>1,G18,0) ->  | L25: TOTAL DE INTERESES A PAGAR DURANTE EL TIEMPO | O25: =SUM($M$30:$M$394) -> 2157123.385 | S25: LA TASA QUE HA INGRESADO ES E | U25: =+IF(V16="NOMINAL",AI6,IF(V16="PERIÓDICA",AI7,IF(V16="EFECTIVA",AI8,))) -> 0 | AS25: LA TASA QUE HA INGRESADO ES E | AU25: =+IF(AV16="NOMINAL",BI6,IF(AV16="PERIÓDICA",BI7,IF(AV16="EFECTIVA",BI8,))) -> 0
C26: =+IF(AL23=1,"", "ERROR EN LA TASA. RECUERDE QUE EL PERIODO PACTADO DE LA TASA NOMINAL DEBE SER SIEMPRE IGUAL O MAYOR AL PERIODO DE PAGO DE INTERÉS.") ->  | K26: =+IF(BL23=1,"", "ERROR EN LA TASA. RECUERDE QUE EL PERIODO PACTADO DE LA TASA NOMINAL DEBE SER SIEMPRE IGUAL O MAYOR AL PERIODO DE PAGO DE INTERÉS.") -> 
G27: =+VLOOKUP($G$15,$AK$43:$AN$51,4,0) -> 0.02303668892 | H27: EM | O27: =+VLOOKUP($O$15,$BK$43:$BN$51,4,0) -> 0.01171491692 | P27: EM
B28: DETALLE DE LA AMORTIZACIÓN DEL CRÉDITO | J28: DETALLE DE LA AMORTIZACIÓN DEL CRÉDITO | AF28: 1 | AG28: Conversión a periodo de pactado anual (nominal) | AK28: =+IF(V16="NOMINAL",IF(W16=W12,U16,U16*VLOOKUP(W16,AK43:AL51,2,0)),U16) -> 0.3143 | AL28: =+CONCATENATE(LEFT(V16,1),"A",LEFT(X16,1),LEFT(Y16,1)) -> EACV | BF28: 1 | BG28: Conversión a periodo de pactado anual (nominal) | BK28: =+IF(AV16="NOMINAL",IF(AW16=AW12,AU16,AU16*VLOOKUP(AW16,BK43:BL51,2,0)),AU16) -> 0.15 | BL28: =+CONCATENATE(LEFT(AV16,1),"A",LEFT(AX16,1),LEFT(AY16,1)) -> EAMV
B29: PERIODO | C29: SALDO INICIAL | D29: CUOTA CRÉDITO | E29: INTERÉS | F29: ABONO A CAPITAL | G29: SALDO | J29: PERIODO | K29: SALDO INICIAL | L29: CUOTA CRÉDITO | M29: INTERÉS | N29: ABONO A CAPITAL | O29: SALDO
B30: 1 | C30: =+G9 -> 14102000 | D30: =PMT(G27,G16,-$G$9) -> 771481.911 | E30: =+IF(ISNUMBER(B30),C30*$G$27,$B$27) -> 324863.3872 | F30: =D30-E30 -> 446618.5238 | G30: =+C30-F30 -> 13655381.48 | J30: 1 | K30: =+O9 -> 14102000 | L30: =PMT(O27,O16,-$O$9) -> 677463.4744 | M30: =+IF(ISNUMBER(J30),K30*$O$27,$J$27) -> 165203.7584 | N30: =L30-M30 -> 512259.716 | O30: =+K30-N30 -> 13589740.28 | AG30: Conversión de Nominal a Efectiva Anual (VENCIDA) | AK30: =((1+AK28/(VLOOKUP(X16,$AK$55:$AL$63,2,0)))^((VLOOKUP(X16,$AK$55:$AL$63,2,0)))-1) -> 0.348378088 | AL30: EA | BG30: Conversión de Nominal a Efectiva Anual (VENCIDA) | BK30: =((1+BK28/(VLOOKUP(AX16,$BK$55:$BL$63,2,0)))^((VLOOKUP(AX16,$BK$55:$BL$63,2,0)))-1) -> 0.1607545177 | BL30: EA
B31: =IF(ISNUMBER(B30),IF(($G$16-B30)>0,B30+1,$C$8),$C$8) -> 2 | C31: =IF(ISNUMBER(B31),+G30,$C$8) -> 13655381.48 | D31: =IF(ISNUMBER(B31),$D$30,$C$8) -> 771481.911 | E31: =+IF(ISNUMBER(B31),C31*$G$27,$B$27) -> 314574.7752 | F31: =IF(ISNUMBER(B31),D31-E31,$C$8) -> 456907.1358 | G31: =IF(ISNUMBER(B31),C31-F31,$C$8) -> 13198474.34 | J31: =IF(ISNUMBER(J30),IF(($O$16-J30)>0,J30+1,$K$8),$C$8) -> 2 | K31: =IF(ISNUMBER(J31),+O30,$C$8) -> 13589740.28 | L31: =IF(ISNUMBER(J31),$L$30,$C$8) -> 677463.4744 | M31: =+IF(ISNUMBER(J31),K31*$O$27,$J$27) -> 159202.6784 | N31: =IF(ISNUMBER(J31),L31-M31,$C$8) -> 518260.796 | O31: =IF(ISNUMBER(J31),K31-N31,$C$8) -> 13071479.49 | S31: Tasas Nominales Equivalentes | X31: Tasas Períodicas Equivalentes | AB31: Tasas Efectivas Equivalentes | AG31: Conversión de Nominal a Efectiva Anual (ANTICIPADA) | AK31: =((1-AK28/(VLOOKUP(X16,$AK$55:$AL$63,2,0)))^(-(VLOOKUP(X16,$AK$55:$AL$63,2,0)))-1) -> 0.3937704951 | AL31: EA | AS31: Tasas Nominales Equivalentes | AX31: Tasas Períodicas Equivalentes | BB31: Tasas Efectivas Equivalentes | BG31: Conversión de Nominal a Efectiva Anual (ANTICIPADA) | BK31: =((1-BK28/(VLOOKUP(AX16,$BK$55:$BL$63,2,0)))^(-(VLOOKUP(AX16,$BK$55:$BL$63,2,0)))-1) -> 0.1629331445 | BL31: EA
B32: 3 | C32: 13198474.34 | D32: 771481.911 | E32: 304049.1476 | F32: 467432.7634 | G32: 12731041.58 | J32: 3 | K32: 13071479.49 | L32: =IF(ISNUMBER(J32),$L$30,$C$8) -> 677463.4744 | M32: 153131.2962 | N32: 524332.1782 | O32: 12547147.31 | S32: Nominal Anual Diario | U32: (NADV) | V32: =((1+$AK$40)^(1/360)-1)*360 -> 0.2734079741 | X32: Diario | Y32: (DV) | Z32: =V32/360 -> 0.0007594665947 | AB32: Efectiva Diaria | AC32: (ED) | AD32: =(((1+$AK$40))^(1/365)-1) -> 0.0007490590472 | AG32: NOMINAL A EFECTIVA | AK32: =IF(V16="NOMINAL",IF(Y16="ANTICIPADO",((1-AK28/(VLOOKUP(X16,$AK$55:$AL$63,2,0)))^(-(VLOOKUP(X16,$AK$55:$AL$63,2,0)))-1),((1+AK28/(VLOOKUP(X16,$AK$55:$AL$63,2,0)))^((VLOOKUP(X16,$AK$55:$AL$63,2,0)))-1))) -> FALSE | AL32: EA | AS32: Nominal Anual Diario | AU32: (NADV) | AV32: =((1+$BK$40)^(1/360)-1)*360 -> 0.1397890756 | AX32: Diario | AY32: (DV) | AZ32: =AV32/360 -> 0.0003883029878 | BB32: Efectiva Diaria | BC32: (ED) | BD32: =(((1+$BK$40))^(1/365)-1) -> 0.0003829827503 | BG32: NOMINAL A EFECTIVA | BK32: =IF(AV16="NOMINAL",IF(AY16="ANTICIPADO",((1-BK28/(VLOOKUP(AX16,$BK$55:$BL$63,2,0)))^(-(VLOOKUP(AX16,$BK$55:$BL$63,2,0)))-1),((1+BK28/(VLOOKUP(AX16,$BK$55:$BL$63,2,0)))^((VLOOKUP(AX16,$BK$55:$BL$63,2,0)))-1))) -> FALSE | BL32: EA
B33: 4 | C33: 12731041.58 | D33: 771481.911 | E33: 293281.0445 | F33: 478200.8665 | G33: 12252840.71 | J33: 4 | K33: 12547147.31 | L33: 677463.4744 | M33: 146988.7883 | N33: 530474.6861 | O33: 12016672.62 | S33: Nominal Anual Semanal Vencida | U33: (NASV) | V33: =((1+$AK$40)^(1/52)-1)*52 -> 0.2740236874 | X33: Semanal Vencido | Y33: (SEMV) | Z33: =V33/52 -> 0.005269686296 | AB33: Efectiva Semanal | AC33: (ESM) | AD33: =(((1+$AK$40))^(1/52)-1) -> 0.005269686296 | AS33: Nominal Anual Semanal Vencida | AU33: (NASV) | AV33: =((1+$BK$40)^(1/52)-1)*52 -> 0.1399499319 | AX33: Semanal Vencido | AY33: (SEMV) | AZ33: =AV33/52 -> 0.002691344845 | BB33: Efectiva Semanal | BC33: (ESM) | BD33: =(((1+$BK$40))^(1/52)-1) -> 0.002691344845
B34: 5 | C34: 12252840.71 | D34: 771481.911 | E34: 282264.8799 | F34: 489217.0312 | G34: 11763623.68 | J34: 5 | K34: 12016672.62 | L34: 677463.4744 | M34: 140774.3214 | N34: 536689.1529 | O34: 11479983.47 | S34: Nominal Anual Semanal Anticipada | U34: (NASA) | V34: =Z34*52 -> 0.2725872382 | X34: Semanal Anticipado | Y34: (SEMA) | Z34: =Z33/(1+Z33) -> 0.005242062273 | AB34: Efectiva Quincenal | AC34: (EQ) | AD34: =(((1+$AK$40))^(1/26)-1) -> 0.01056714219 | AS34: Nominal Anual Semanal Anticipada | AU34: (NASA) | AV34: =AZ34*52 -> 0.1395742894 | AX34: Semanal Anticipado | AY34: (SEMA) | AZ34: =AZ33/(1+AZ33) -> 0.002684120949 | BB34: Efectiva Quincenal | BC34: (EQ) | BD34: =(((1+$BK$40))^(1/26)-1) -> 0.005389933026
B35: 6 | C35: 11763623.68 | D35: 771481.911 | E35: 270994.9393 | F35: 500486.9717 | G35: 11263136.71 | J35: 6 | K35: 11479983.47 | L35: 677463.4744 | M35: 134487.0526 | N35: 542976.4218 | O35: 10937007.05 | S35: Nominal Anual Quincena Vencida | U35: (NAQV) | V35: =((1+$AK$40)^(1/26)-1)*26 -> 0.2747456969 | X35: Quincenal Vencido | Y35: (QV) | Z35: =V35/26 -> 0.01056714219 | AB35: Efectiva Mensual | AC35: (EM) | AD35: =(((1+$AK$40))^(1/12)-1) -> 0.02303668892 | AF35: 2 | AG35: Conversión de Efectivas a Efectiva Anual | AK35: =+IF(V16="EFECTIVA",(((1+U16))^(VLOOKUP($G$12,$AK$43:$AL$51,2,0)/1)-1),0) -> 0.3143 | AL35: EA | AS35: Nominal Anual Quincena Vencida | AU35: (NAQV) | AV35: =((1+$BK$40)^(1/26)-1)*26 -> 0.1401382587 | AX35: Quincenal Vencido | AY35: (QV) | AZ35: =AV35/26 -> 0.005389933026 | BB35: Efectiva Mensual | BC35: (EM) | BD35: =(((1+$BK$40))^(1/12)-1) -> 0.01171491692 | BF35: 2 | BG35: Conversión de Efectivas a Efectiva Anual | BK35: =+IF(AV16="EFECTIVA",(((1+AU16))^(VLOOKUP($O$12,$BK$43:$BL$51,2,0)/1)-1),0) -> 0.15 | BL35: EA
B36: 7 | C36: 11263136.71 | D36: 771481.911 | E36: 259465.3766 | F36: 512016.5344 | G36: 10751120.17 | J36: 7 | K36: 10937007.05 | L36: 677463.4744 | M36: 128126.1289 | N36: 549337.3455 | O36: 10387669.7 | S36: Nominal Anual Quincena Anticipada | U36: (NAQA) | V36: =Z36*26 -> 0.2718727785 | X36: Quincenal Anticipado | Y36: (QA) | Z36: =Z35/(1+Z35) -> 0.01045664533 | AB36: Efectiva Bimestral | AC36: (EB) | AD36: =(((1+$AK$40))^(1/6)-1) -> 0.04660406688 | AS36: Nominal Anual Quincena Anticipada | AU36: (NAQA) | AV36: =AZ36*26 -> 0.1393869722 | AX36: Quincenal Anticipado | AY36: (QA) | AZ36: =AZ35/(1+AZ35) -> 0.005361037394 | BB36: Efectiva Bimestral | BC36: (EB) | BD36: =(((1+$BK$40))^(1/6)-1) -> 0.02356707312
B37: 8 | C37: 10751120.17 | D37: 771481.911 | E37: 247670.211 | F37: 523811.7 | G37: 10227308.47 | J37: 8 | K37: 10387669.7 | L37: 677463.4744 | M37: 121690.6876 | N37: 555772.7868 | O37: 9831896.917 | S37: Nominal Anual Mes Vencido | U37: (NAMV) | V37: =((1+$AK$40)^(1/12)-1)*12 -> 0.2764402671 | X37: Mensual Vencido | Y37: (MV) | Z37: =V37/12 -> 0.02303668892 | AB37: Efectiva Trimestral | AC37: (ET) | AD37: =(((1+$AK$40))^(1/4)-1) -> 0.07071435919 | AF37: 3 | AG37: De Tasa periodica Anticipada a vencida | AK37: =IF(V16="PERIÓDICA",IF(Y16="ANTICIPADO",U16/(1-U16),U16),0) -> 0 | AL37: VENCIDA | AS37: Nominal Anual Mes Vencido | AU37: (NAMV) | AV37: =((1+$BK$40)^(1/12)-1)*12 -> 0.140579003 | AX37: Mensual Vencido | AY37: (MV) | AZ37: =AV37/12 -> 0.01171491692 | BB37: Efectiva Trimestral | BC37: (ET) | BD37: =(((1+$BK$40))^(1/4)-1) -> 0.03555807634 | BF37: 3 | BG37: De Tasa periodica Anticipada a vencida | BK37: =IF(AV16="PERIÓDICA",IF(AY16="ANTICIPADO",AU16/(1-AU16),AU16),0) -> 0 | BL37: VENCIDA
B38: 9 | C38: 10227308.47 | D38: 771481.911 | E38: 235603.3238 | F38: 535878.5872 | G38: 9691429.886 | J38: 9 | K38: 9831896.917 | L38: 677463.4744 | M38: 115179.8555 | N38: 562283.6188 | O38: 9269613.298 | S38: Nominal Anual Mes Anticipado | U38: (NAMA) | V38: =Z38*12 -> 0.270215399 | X38: Mensual Anticipado | Y38: (MA) | Z38: =Z37/(1+Z37) -> 0.02251794991 | AB38: Efectiva Cuatrimestral | AC38: (EC) | AD38: =(((1+$AK$40))^(1/3)-1) -> 0.09538007281 | AG38: De periodica a Efectiva Anual | AK38: =((1+AK37)^(VLOOKUP(W16,$AK$43:$AL$51,2,0))-1) -> 0 | AL38: EA | AS38: Nominal Anual Mes Anticipado | AU38: (NAMA) | AV38: =AZ38*12 -> 0.1389512013 | AX38: Mensual Anticipado | AY38: (MA) | AZ38: =AZ37/(1+AZ37) -> 0.01157926677 | BB38: Efectiva Cuatrimestral | BC38: (EC) | BD38: =(((1+$BK$40))^(1/3)-1) -> 0.04768955317 | BG38: De periodica a Efectiva Anual | BK38: =((1+BK37)^(VLOOKUP(AW16,$BK$43:$BL$51,2,0))-1) -> 0 | BL38: EA
B39: 10 | C39: 9691429.886 | D39: 771481.911 | E39: 223258.4555 | F39: 548223.4555 | G39: 9143206.43 | J39: 10 | K39: 9269613.298 | L39: 677463.4744 | M39: 108592.7497 | N39: 568870.7247 | O39: 8700742.573 | S39: Nominal Anual Bimestre Vencido | U39: (NABV) | V39: =((1+$AK$40)^(1/6)-1)*6 -> 0.2796244013 | X39: Bimestral Vencido | Y39: (BV) | Z39: =V39/6 -> 0.04660406688 | AB39: Efectiva Semestral | AC39: (ES) | AD39: =(((1+$AK$40))^(1/2)-1) -> 0.146429239 | AS39: Nominal Anual Bimestre Vencido | AU39: (NABV) | AV39: =((1+$BK$40)^(1/6)-1)*6 -> 0.1414024387 | AX39: Bimestral Vencido | AY39: (BV) | AZ39: =AV39/6 -> 0.02356707312 | BB39: Efectiva Semestral | BC39: (ES) | BD39: =(((1+$BK$40))^(1/2)-1) -> 0.07238052948
B40: 11 | C40: 9143206.43 | D40: 771481.911 | E40: 210629.2023 | F40: 560852.7087 | G40: 8582353.722 | J40: 11 | K40: 8700742.573 | L40: 677463.4744 | M40: 101928.4764 | N40: 575534.998 | O40: 8125207.575 | S40: Nominal Anual Bimestre Anticipado | U40: (NABA) | V40: =Z40*6 -> 0.2671730506 | X40: Bimestral Anticipado | Y40: (BA) | Z40: =Z39/(1+Z39) -> 0.04452884176 | AB40: Efectiva Anual | AC40: (EA) | AD40: =(((1+$AK$40))^(1/1)-1) -> 0.3143 | AG40: DEFINITIVA A CONVERTIR (EA%) | AK40: =+IF(V16="PERIÓDICA",AK38,IF(V16="NOMINAL",AK32,IF(V16="EFECTIVA",AK35,0))) -> 0.3143 | AL40: EA | AS40: Nominal Anual Bimestre Anticipado | AU40: (NABA) | AV40: =AZ40*6 -> 0.1381467247 | AX40: Bimestral Anticipado | AY40: (BA) | AZ40: =AZ39/(1+AZ39) -> 0.02302445412 | BB40: Efectiva Anual | BC40: (EA) | BD40: =(((1+$BK$40))^(1/1)-1) -> 0.15 | BG40: DEFINITIVA A CONVERTIR (EA%) | BK40: =+IF(AV16="PERIÓDICA",BK38,IF(AV16="NOMINAL",BK32,IF(AV16="EFECTIVA",BK35,0))) -> 0.15 | BL40: EA
B41: 12 | C41: 8582353.722 | D41: 771481.911 | E41: 197709.0129 | F41: 573772.8981 | G41: 8008580.824 | J41: 12 | K41: 8125207.575 | L41: 677463.4744 | M41: 95186.1317 | N41: 582277.3427 | O41: 7542930.233 | S41: Nominal Anual Trimestre Vencido | U41: (NATV) | V41: =((1+$AK$40)^(1/4)-1)*4 -> 0.2828574368 | X41: Trimestral Vencido | Y41: (TV) | Z41: =V41/4 -> 0.07071435919 | AS41: Nominal Anual Trimestre Vencido | AU41: (NATV) | AV41: =((1+$BK$40)^(1/4)-1)*4 -> 0.1422323054 | AX41: Trimestral Vencido | AY41: (TV) | AZ41: =AV41/4 -> 0.03555807634
B42: 13 | C42: 8008580.824 | D42: 771481.911 | E42: 184491.1851 | F42: 586990.7259 | G42: 7421590.098 | J42: 13 | K42: 7542930.233 | L42: 677463.4744 | M42: 88364.80101 | N42: 589098.6734 | O42: 6953831.559 | S42: Nominal Anual Trimestre Anticipado | U42: (NATA) | V42: =Z42*4 -> 0.2641763738 | X42: Trimestral Anticipado | Y42: (TA) | Z42: =Z41/(1+Z41) -> 0.06604409345 | AO42: 30 | AS42: Nominal Anual Trimestre Anticipado | AU42: (NATA) | AV42: =AZ42*4 -> 0.1373484584 | AX42: Trimestral Anticipado | AY42: (TA) | AZ42: =AZ41/(1+AZ41) -> 0.0343371146 | BO42: 30
B43: 14 | C43: 7421590.098 | D43: 771481.911 | E43: 170968.8624 | F43: 600513.0486 | G43: 6821077.049 | J43: 14 | K43: 6953831.559 | L43: 677463.4744 | M43: 81463.55899 | N43: 595999.9154 | O43: 6357831.644 | S43: Nominal Anual Cuatrimestre Vencido | U43: (NACV) | V43: =((1+$AK$40)^(1/3)-1)*3 -> 0.2861402184 | X43: Cuatrimestre Vencido | Y43: (CV) | Z43: =V43/3 -> 0.09538007281 | AJ43: TIPO DE PERIODO PACTADO | AK43: ANUAL | AL43: 1 | AM43: 0.08333333333 | AN43: =+AD40 -> 0.3143 | AO43: 4 | AS43: Nominal Anual Cuatrimestre Vencido | AU43: (NACV) | AV43: =((1+$BK$40)^(1/3)-1)*3 -> 0.1430686595 | AX43: Cuatrimestre Vencido | AY43: (CV) | AZ43: =AV43/3 -> 0.04768955317 | BJ43: TIPO DE PERIODO PACTADO | BK43: ANUAL | BL43: 1 | BM43: 0.08333333333 | BN43: =+BD40 -> 0.15 | BO43: 4
B44: 15 | C44: 6821077.049 | D44: 771481.911 | E44: 157135.0301 | F44: 614346.8809 | G44: 6206730.168 | J44: 15 | K44: 6357831.644 | L44: 677463.4744 | M44: 74481.4695 | N44: 602982.0049 | O44: 5754849.639 | S44: Nominal Anual Cuatrimestre Anticipado | U44: (NACA) | V44: =Z44*3 -> 0.2612245973 | X44: Cuatrimestre Anticipado | Y44: (CA) | Z44: =Z43/(1+Z43) -> 0.08707486577 | AK44: SEMESTRAL | AL44: 2 | AM44: 0.1666666667 | AN44: =+AD39 -> 0.146429239 | AO44: 2 | AS44: Nominal Anual Cuatrimestre Anticipado | AU44: (NACA) | AV44: =AZ44*3 -> 0.1365563483 | AX44: Cuatrimestre Anticipado | AY44: (CA) | AZ44: =AZ43/(1+AZ43) -> 0.04551878276 | BK44: SEMESTRAL | BL44: 2 | BM44: 0.1666666667 | BN44: =+BD39 -> 0.07238052948 | BO44: 2
B45: 16 | C45: 6206730.168 | D45: 771481.911 | E45: 142982.5121 | F45: 628499.3989 | G45: 5578230.769 | J45: 16 | K45: 5754849.639 | L45: 677463.4744 | M45: 67417.58541 | N45: 610045.889 | O45: 5144803.75 | S45: Nominal Anual Semestre Vencido | U45: (NASV) | V45: =((1+$AK$40)^(1/2)-1)*2 -> 0.292858478 | X45: Semestral Vencido | Y45: (SV) | Z45: =V45/2 -> 0.146429239 | AK45: CUATRIMESTRAL | AL45: 3 | AM45: 0.25 | AN45: =+AD38 -> 0.09538007281 | AO45: 12 | AS45: Nominal Anual Semestre Vencido | AU45: (NASV) | AV45: =((1+$BK$40)^(1/2)-1)*2 -> 0.144761059 | AX45: Semestral Vencido | AY45: (SV) | AZ45: =AV45/2 -> 0.07238052948 | BK45: CUATRIMESTRAL | BL45: 3 | BM45: 0.25 | BN45: =+BD38 -> 0.04768955317 | BO45: 12
B46: 17 | C46: 5578230.769 | D46: 771481.911 | E46: 128503.967 | F46: 642977.944 | G46: 4935252.825 | J46: 17 | K46: 5144803.75 | L46: 677463.4744 | M46: 60270.9485 | N46: 617192.5259 | O46: 4527611.224 | S46: Nominal Anual Semestre Anticipado | U46: (NASA) | V46: =Z46*2 -> 0.2554527292 | X46: Semestral Anticipado | Y46: (SA) | Z46: =Z45/(1+Z45) -> 0.1277263646 | AK46: TRIMESTRAL | AL46: 4 | AM46: 0.3333333333 | AN46: =+AD37 -> 0.07071435919 | AS46: Nominal Anual Semestre Anticipado | AU46: (NASA) | AV46: =AZ46*2 -> 0.1349903835 | AX46: Semestral Anticipado | AY46: (SA) | AZ46: =AZ45/(1+AZ45) -> 0.06749519176 | BK46: TRIMESTRAL | BL46: 4 | BM46: 0.3333333333 | BN46: =+BD37 -> 0.03555807634
B47: 18 | C47: 4935252.825 | D47: 771481.911 | E47: 113691.8841 | F47: 657790.0269 | G47: 4277462.798 | J47: 18 | K47: 4527611.224 | L47: 677463.4744 | M47: 53040.58933 | N47: 624422.885 | O47: 3903188.339 | S47: Nominal Anual Año Vencido | U47: (NAAV) | V47: =((1+$AK$40)^(1/1)-1)*1 -> 0.3143 | X47: Anual Vencido | Y47: (AV) | Z47: =V47/1 -> 0.3143 | AK47: BIMESTRAL | AL47: 6 | AM47: 0.5 | AN47: =+AD36 -> 0.04660406688 | AS47: Nominal Anual Año Vencido | AU47: (NAAV) | AV47: =((1+$BK$40)^(1/1)-1)*1 -> 0.15 | AX47: Anual Vencido | AY47: (AV) | AZ47: =AV47/1 -> 0.15 | BK47: BIMESTRAL | BL47: 6 | BM47: 0.5 | BN47: =+BD36 -> 0.02356707312
B48: 19 | C48: 4277462.798 | D48: 771481.911 | E48: 98538.57986 | F48: 672943.3312 | G48: 3604519.467 | J48: 19 | K48: 3903188.339 | L48: 677463.4744 | M48: 45725.52711 | N48: 631737.9473 | O48: 3271450.392 | S48: Nominal Anual Año Anticipado | U48: (NAAA) | V48: =Z48*1 -> 0.239138705 | X48: Anual Anticipado | Y48: (AA) | Z48: =Z47/(1+Z47) -> 0.239138705 | AK48: MENSUAL | AL48: 12 | AM48: 1 | AN48: =+AD35 -> 0.02303668892 | AS48: Nominal Anual Año Anticipado | AU48: (NAAA) | AV48: =AZ48*1 -> 0.1304347826 | AX48: Anual Anticipado | AY48: (AA) | AZ48: =AZ47/(1+AZ47) -> 0.1304347826 | BK48: MENSUAL | BL48: 12 | BM48: 1 | BN48: =+BD35 -> 0.01171491692
B49: 20 | C49: 3604519.467 | D49: 771481.911 | E49: 83036.19368 | F49: 688445.7173 | G49: 2916073.75 | J49: 20 | K49: 3271450.392 | L49: 677463.4744 | M49: 38324.76955 | N49: 639138.7048 | O49: 2632311.687 | AK49: QUINCENAL | AL49: 26 | AM49: =1/0.5 -> 2 | AN49: =+AD34 -> 0.01056714219 | BK49: QUINCENAL | BL49: 26 | BM49: =1/0.5 -> 2 | BN49: =+BD34 -> 0.005389933026
B50: 21 | C50: 2916073.75 | D50: 771481.911 | E50: 67176.68385 | F50: 704305.2272 | G50: 2211768.523 | J50: 21 | K50: 2632311.687 | L50: 677463.4744 | M50: 30837.31272 | N50: 646626.1617 | O50: 1985685.525 | AK50: SEMANAL | AL50: 52 | AM50: =1/0.25 -> 4 | AN50: =+AD33 -> 0.005269686296 | BK50: SEMANAL | BL50: 52 | BM50: =1/0.25 -> 4 | BN50: =+BD33 -> 0.002691344845
B51: 22 | C51: 2211768.523 | D51: 771481.911 | E51: 50951.82342 | F51: 720530.0876 | G51: 1491238.435 | J51: 22 | K51: 1985685.525 | L51: 677463.4744 | M51: 23262.14096 | N51: 654201.3334 | O51: 1331484.192 | AK51: DIARIO | AL51: 365 | AM51: =1/(1/30) -> 30 | AN51: =+AD32 -> 0.0007490590472 | BK51: DIARIO | BL51: 365 | BM51: =1/(1/30) -> 30 | BN51: =+BD32 -> 0.0003829827503
B52: 23 | C52: 1491238.435 | D52: 771481.911 | E52: 34353.19594 | F52: 737128.7151 | G52: 754109.72 | J52: 23 | K52: 1331484.192 | L52: 677463.4744 | M52: 15598.22669 | N52: 661865.2477 | O52: 669618.9441
B53: 24 | C53: 754109.72 | D53: 771481.911 | E53: 17372.19103 | F53: 754109.72 | G53: -3.492459655e-09 | J53: 24 | K53: 669618.9441 | L53: 677463.4744 | M53: 7844.530298 | N53: 669618.9441 | O53: -1.979060471e-09
AJ55: TIPO DE PERIODO PAGO INTERES | AK55: AÑO | AL55: 1 | AM55: ANUAL | BJ55: TIPO DE PERIODO PAGO INTERES | BK55: AÑO | BL55: 1 | BM55: ANUAL
AK56: SEMESTRE | AL56: 2 | AM56: SEMESTRAL | BK56: SEMESTRE | BL56: 2 | BM56: SEMESTRAL
AK57: CUATRIMESTRE | AL57: 3 | AM57: CUATRIMESTRAL | BK57: CUATRIMESTRE | BL57: 3 | BM57: CUATRIMESTRAL
AK58: TRIMESTRE | AL58: 4 | AM58: TRIMESTRAL | BK58: TRIMESTRE | BL58: 4 | BM58: TRIMESTRAL
AK59: BIMESTRE | AL59: 6 | AM59: BIMESTRAL | BK59: BIMESTRE | BL59: 6 | BM59: BIMESTRAL
AK60: MES | AL60: 12 | AM60: MENSUAL | BK60: MES | BL60: 12 | BM60: MENSUAL
AK61: SEMANA | AL61: 26 | AM61: SEMANAL | BK61: SEMANA | BL61: 26 | BM61: SEMANAL
AK62: QUINCENA | AL62: 52 | AM62: QUINCENAL | BK62: QUINCENA | BL62: 52 | BM62: QUINCENAL
AK63: DIARIO | AL63: 365 | AM63: DIARIA | BK63: DIARIO | BL63: 365 | BM63: DIARIA
AJ65: FORMA DE PAGO | AK65: VENCIDO | BJ65: FORMA DE PAGO | BK65: VENCIDO
AK66: ANTICIPADO | BK66: ANTICIPADO
AJ68: TIPO DE TASA | AK68: NOMINAL | AL68: 1 | AM68: =+AK30 -> 0.348378088 | BJ68: TIPO DE TASA | BK68: NOMINAL | BL68: 1 | BM68: =+BK30 -> 0.1607545177
AK69: EFECTIVA | AL69: 2 | AM69: =+AK35 -> 0.3143 | BK69: EFECTIVA | BL69: 2 | BM69: =+BK35 -> 0.15
AK70: PERIÓDICA | AL70: 3 | AM70: =+AK38 -> 0 | BK70: PERIÓDICA | BL70: 3 | BM70: =+BK38 -> 0
B95: =IF(ISNUMBER(B94),IF(($G$16-B94)>0,B94+1,$C$8),$C$8) ->  | C95: =IF(ISNUMBER(B95),+G94,$C$8) ->  | D95: =IF(ISNUMBER(B95),$D$30,$C$8) ->  | E95: =+IF(ISNUMBER(B95),C95*$G$27,$B$27) ->  | F95: =IF(ISNUMBER(B95),D95-E95,$C$8) ->  | G95: =IF(ISNUMBER(B95),C95-F95,$C$8) ->  | J95: =IF(ISNUMBER(J94),IF(($O$16-J94)>0,J94+1,$K$8),$C$8) ->  | K95: =IF(ISNUMBER(J95),+O94,$C$8) ->  | L95: =IF(ISNUMBER(J95),$L$30,$C$8) ->  | M95: =+IF(ISNUMBER(J95),K95*$O$27,$J$27) ->  | N95: =IF(ISNUMBER(J95),L95-M95,$C$8) ->  | O95: =IF(ISNUMBER(J95),K95-N95,$C$8) -> 
B159: =IF(ISNUMBER(B158),IF(($G$16-B158)>0,B158+1,$C$8),$C$8) ->  | C159: =IF(ISNUMBER(B159),+G158,$C$8) ->  | D159: =IF(ISNUMBER(B159),$D$30,$C$8) ->  | E159: =+IF(ISNUMBER(B159),C159*$G$27,$B$27) ->  | F159: =IF(ISNUMBER(B159),D159-E159,$C$8) ->  | G159: =IF(ISNUMBER(B159),C159-F159,$C$8) ->  | J159: =IF(ISNUMBER(J158),IF(($O$16-J158)>0,J158+1,$K$8),$C$8) ->  | K159: =IF(ISNUMBER(J159),+O158,$C$8) ->  | L159: =IF(ISNUMBER(J159),$L$30,$C$8) ->  | M159: =+IF(ISNUMBER(J159),K159*$O$27,$J$27) ->  | N159: =IF(ISNUMBER(J159),L159-M159,$C$8) ->  | O159: =IF(ISNUMBER(J159),K159-N159,$C$8) -> 
B223: =IF(ISNUMBER(B222),IF(($G$16-B222)>0,B222+1,$C$8),$C$8) ->  | C223: =IF(ISNUMBER(B223),+G222,$C$8) ->  | D223: =IF(ISNUMBER(B223),$D$30,$C$8) ->  | E223: =+IF(ISNUMBER(B223),C223*$G$27,$B$27) ->  | F223: =IF(ISNUMBER(B223),D223-E223,$C$8) ->  | G223: =IF(ISNUMBER(B223),C223-F223,$C$8) ->  | J223: =IF(ISNUMBER(J222),IF(($O$16-J222)>0,J222+1,$K$8),$C$8) ->  | K223: =IF(ISNUMBER(J223),+O222,$C$8) ->  | L223: =IF(ISNUMBER(J223),$L$30,$C$8) ->  | M223: =+IF(ISNUMBER(J223),K223*$O$27,$J$27) ->  | N223: =IF(ISNUMBER(J223),L223-M223,$C$8) ->  | O223: =IF(ISNUMBER(J223),K223-N223,$C$8) -> 
B287: =IF(ISNUMBER(B286),IF(($G$16-B286)>0,B286+1,$C$8),$C$8) ->  | C287: =IF(ISNUMBER(B287),+G286,$C$8) ->  | D287: =IF(ISNUMBER(B287),$D$30,$C$8) ->  | E287: =+IF(ISNUMBER(B287),C287*$G$27,$B$27) ->  | F287: =IF(ISNUMBER(B287),D287-E287,$C$8) ->  | G287: =IF(ISNUMBER(B287),C287-F287,$C$8) ->  | J287: =IF(ISNUMBER(J286),IF(($O$16-J286)>0,J286+1,$K$8),$C$8) ->  | K287: =IF(ISNUMBER(J287),+O286,$C$8) ->  | L287: =IF(ISNUMBER(J287),$L$30,$C$8) ->  | M287: =+IF(ISNUMBER(J287),K287*$O$27,$J$27) ->  | N287: =IF(ISNUMBER(J287),L287-M287,$C$8) ->  | O287: =IF(ISNUMBER(J287),K287-N287,$C$8) -> 
B351: =IF(ISNUMBER(B350),IF(($G$16-B350)>0,B350+1,$C$8),$C$8) ->  | C351: =IF(ISNUMBER(B351),+G350,$C$8) ->  | D351: =IF(ISNUMBER(B351),$D$30,$C$8) ->  | E351: =+IF(ISNUMBER(B351),C351*$G$27,$B$27) ->  | F351: =IF(ISNUMBER(B351),D351-E351,$C$8) ->  | G351: =IF(ISNUMBER(B351),C351-F351,$C$8) ->  | J351: =IF(ISNUMBER(J350),IF(($O$16-J350)>0,J350+1,$K$8),$C$8) ->  | K351: =IF(ISNUMBER(J351),+O350,$C$8) ->  | L351: =IF(ISNUMBER(J351),$L$30,$C$8) ->  | M351: =+IF(ISNUMBER(J351),K351*$O$27,$J$27) ->  | N351: =IF(ISNUMBER(J351),L351-M351,$C$8) ->  | O351: =IF(ISNUMBER(J351),K351-N351,$C$8) -> 
